[Event "Frauenbundesliga 2021-22"]
[Site "Germany"]
[Date "2022.05.29"]
[Round "11.6"]
[White "Krasnodebska, Magdalena"]
[Black "Kubikova, Alena"]
[Result "1-0"]
[ECO "B04"]
[WhiteElo "2092"]
[BlackElo "2093"]
[Annotator "TA"]
[PlyCount "133"]
[EventDate "2021.11.26"]
[EventType "team-tourn"]
[EventCountry "GER"]
[SourceTitle "playchess.com"]
[Source "ChessBase"]
[SourceQuality "1"]
[WhiteTeam "Lehrte"]
[BlackTeam "Rodewisch"]
[TimeControl "40/5400+30:1800+30"]

{[%evp 15,133,39,48,30,46,52,62,32,93,50,87,29,79,77,57,37,163,160,172,136,154,155,183,118,189,174,218,107,119,121,106,102,110,0,0,-132,-138,-149,84,79,76,77,83,78,83,79,78,0,0,0,270,0,14,0,266,141,122,106,112,78,84,71,84,0,0,0,0,0,354,322,466,483,700,665,786,800,789,781,828,777,1224,1200,1377,1313,1143,775,743,638,639,593,844,829,939,925,919,905,800,761,1499,1518,1319,1327,1603,1579,1460,1377,1061,1019,1418,1302,1159,1086,12834,12823,12841,12842,12841,12842,12841,12841]} 1. e4 {[%emt 1:31:00]} g6 {[%emt 0:00:11]} 2. d4 {[%emt 0:00:00]} Bg7 {[%emt 0:00:08]} 3. Nf3 {[%emt 0:00:00]} d6 {[%emt 0:00:13]} 4. Bc4 {[%emt 0:00:00]} c6 {[%emt 0:06:21]} 5. c3 {[%emt 0:00:00]} Nf6 {[%emt 0:11:11]} 6. e5 {[%emt 0:00:00]} dxe5 {[%emt 0:06:04]} 7. Nxe5 {[%emt 0:00:00]} Nd5 {[%emt 0:02:22]} 8. O-O {[%emt 0:00:00]} O-O {[%emt 0:02:34]} 9. Nd2 {[%emt 0:00:00] [#] B04: Alekhine's Defence: 4 Nf3.} e6 $146 {[%emt 0:12:02]} ({Predecessor:} 9... Nd7 10. Nd3 a5 11. Nf3 a4 12. a3 N7f6 13. h3 b6 14. Re1 Qc7 15. Nb4 Rd8 16. Bg5 Bb7 {0-1 (57) Savchenko,B (2564)-Sadhwani,R (2545) Chess.com INT 2020}) 10. Ndf3 {[%emt 0:00:00]} Nd7 {[%emt 0:10:26]} 11. Re1 {[%emt 0:00:00] White is slightly better.} N7f6 {[%emt 0:13:01]} ({Black should try} 11... Qc7 $14) 12. Qc2 {[%emt 0:00:00]} Qc7 {[%emt 0:06:23]} 13. b3 {[%emt 0:00:00]} (13. Bd2 $16) 13... Ne7 {[%emt 0:12:19]} (13... b6 $11) 14. Ba3 $16 {[%emt 0:00:00] White is much more active. The black rooks are badly placed.} Nfd5 {[%emt 0:03:06]} 15. Bd3 {[%emt 0:00:00]} b5 {[%emt 0:07:57]} (15... a5 $14) 16. c4 $18 {[%emt 0:00:00]} b4 {[%emt 0:01:32]} 17. Bc1 {[%emt 0:00:00]} ({Much less strong is} 17. cxd5 $6 bxa3 18. dxe6 (18. dxc6 f6 $16) (18. Nxc6 Nxd5 19. Be4 Kh8 $14) 18... Bxe6 $16) 17... Nb6 {[%emt 0:00:18]} 18. Bf4 {[%emt 0:00:00][%cal Oe5g6]} Qd8 {[%emt 0:00:43]} 19. Be4 {[%emt 0:00:56]} (19. Qd2 $18) 19... Bb7 {[%emt 0:00:15]} (19... Qe8 $16) 20. Qd2 {[%emt 0:06:26]} f6 {[%emt 0:00:28]} 21. Ng4 {[%emt 0:00:36]} (21. Nd3 $18) 21... f5 $16 {[%emt 0:00:22]} 22. Nh6+ {[%emt 0:00:17]} Bxh6 {[%emt 0:01:05]} 23. Bxh6 {[%emt 0:00:06]} fxe4 {[%emt 0:00:23] [#]} 24. Bxf8 {[%emt 0:01:08]} ({White must play} 24. Ng5 $1 $16 {[%cal Rg5e6]} Rf6 25. Nxe4) 24... exf3 $11 {[%emt 0:00:23]} ({Resist} 24... Qxf8 25. Ng5 $16 (25. Rxe4 c5 $11)) 25. Bh6 {[%emt 0:01:08] [#]} (25. Bxe7 $11 {was the only way to keep the balance.} Qxe7 26. Qe3) 25... Nf5 $1 $17 {[%emt 0:00:57] And now ...Qh4 would win.} 26. Rxe6 {[%emt 0:00:56]} Qxd4 $2 {[%emt 0:01:55]} (26... Nxd4 $17 {and life is bright.} 27. Qe3 Nf5) 27. Qxd4 $16 {[%emt 0:00:17] Chess con chili.} Nxd4 {[%emt 0:00:06]} 28. Re7 {[%emt 0:00:09]} Nf5 {[%emt 0:01:00] Against Rg7+} 29. Rxb7 {[%emt 0:00:07]} Nxh6 {[%emt 0:00:06]} 30. gxf3 {[%emt 0:00:12]} Nf5 {[%emt 0:00:18]} 31. Re1 {[%emt 0:00:30]} (31. Rd1 $16) 31... Rd8 $1 $11 {[%emt 0:01:04]} 32. Rxa7 {[%emt 0:01:30]} Nd4 $2 {[%emt 0:00:33][%mdl 8192]} (32... c5 $11) 33. Kg2 $2 {[%emt 0:00:36]} (33. Ree7 $18) 33... Nc8 {[%emt 0:00:23]} 34. Rc7 {[%emt 0:00:38]} h5 $2 {[%emt 0:00:39][%mdl 8192]} (34... Nd6 $11) 35. Re4 {[%emt 0:00:20]} (35. Rd1 $18) 35... Nf5 $16 {[%emt 0:00:33]} 36. Rxc6 {[%emt 0:00:43]} Nce7 {[%emt 0:00:18]} 37. Rc7 {[%emt 0:00:16]} Kf7 {[%emt 0:00:13]} 38. c5 {[%emt 0:00:13]} Kf6 {[%emt 0:00:48]} 39. Rxb4 {[%emt 0:00:23]} (39. Rb7 $16) 39... Nd5 $11 {[%emt 0:00:23][%csl LRb4,LRc7]} 40. Rc6+ {[%emt 0:00:13][%cal Bc7c6,Bc6d6,Bd6d4,Bd4c4,Bc4c1][%mdl 32]} Kg5 {[%emt 0:00:22]} 41. Re4 {[%emt 0:31:06] aiming for Kf1.} Nh4+ $2 {[%emt 0:07:58][%mdl 8192] Pair of Knights! Black is now going downhill.} (41... Nf4+ $11 {and Black is okay.} 42. Kf1 Rd1+ 43. Re1 Rd2) 42. Kf1 $18 {[%emt 0:00:00] Black must now prevent Rd6.} Nf4 {[%emt 0:09:55]} (42... Nf5 $142 43. h4+ Kh6) 43. Rd6 {[%emt 0:00:00] White is clearly winning.} Ra8 {[%emt 0:02:57]} (43... Rc8 $142 44. Rdd4 Nf5 45. h4+ Kh6) 44. Rdd4 {[%emt 0:00:00]} Nhg2 {[%emt 0:02:50]} 45. a4 {[%emt 0:00:00]} Kf5 {[%emt 0:02:07]} 46. c6 {[%emt 0:00:00] Threatens to win with c7.} Rc8 {[%emt 0:01:03]} 47. Rc4 {[%emt 0:00:00]} Rd8 {[%emt 0:05:05]} 48. Rc1 {[%emt 0:00:00]} g5 {[%emt 0:02:06]} 49. c7 {[%emt 0:00:00]} Rc8 {[%emt 0:00:25]} 50. Rd4 {[%emt 0:00:00]} Ne6 {[%emt 0:00:27] Prevents Rd8.} 51. Rd8 {[%emt 0:00:00]} Nxd8 {[%emt 0:00:51]} 52. cxd8=Q {[%emt 0:06:44]} ({Worse is} 52. Kxg2 Ne6 $11) 52... Rxd8 {[%emt 0:00:12]} 53. Kxg2 {[%emt 0:00:00][%mdl 4096] Endgame KR-KR} Rb8 {[%emt 0:00:56]} 54. Rc5+ {[%emt 0:00:00]} Kf4 {[%emt 0:00:27]} 55. Rc4+ {[%emt 0:00:00]} Ke5 {[%emt 0:00:27]} 56. b4 {[%emt 0:00:00][%cal Bb3b4,Bb4b5][%mdl 32]} Kd5 {[%emt 0:00:36]} 57. Rc5+ {[%emt 0:00:00]} Kd6 {[%emt 0:00:31]} 58. Rb5 {[%emt 0:00:00]} Rg8 {[%emt 0:00:29]} 59. a5 {[%emt 0:00:00]} Kc6 {[%emt 0:00:27]} 60. Rc5+ {[%emt 0:00:00]} Kb7 {[%emt 0:00:35]} 61. b5 {[%emt 0:00:00] Rf5 is the strong threat.} Rg7 {[%emt 0:00:33]} 62. Re5 {[%emt 0:00:00]} Ka7 {[%emt 0:00:23]} 63. Kf1 {[%emt 0:00:00]} g4 {[%emt 0:00:36]} 64. Rxh5 {[%emt 0:00:00]} gxf3 {[%emt 0:00:14]} 65. Rf5 {[%emt 0:00:00]} Rb7 {[%emt 0:00:45]} 66. h4 {[%emt 0:00:00]} Rd7 {[%emt 0:00:37]} 67. Rxf3 {[%emt 0:00:00] Weighted Error Value: White=0.34/Black=0.69} 1-0

[Event "Frauenbundesliga 2021-22"]
[Site "Germany"]
[Date "2022.05.29"]
[Round "11.6"]
[White "Koehler, Inken"]
[Black "Just, Anita"]
[Result "1/2-1/2"]
[ECO "A21"]
[WhiteElo "2002"]
[BlackElo "1895"]
[Annotator "TA"]
[PlyCount "107"]
[EventDate "2021.11.26"]
[EventType "team-tourn"]
[EventCountry "GER"]
[SourceTitle "playchess.com"]
[Source "ChessBase"]
[SourceQuality "1"]
[WhiteTeam "Harksheide"]
[BlackTeam "Leipzig"]
[TimeControl "40/5400+30:1800+30"]

{[%evp 9,107,0,22,-14,0,-52,-44,-56,-52,-41,-42,-51,-39,-71,-29,-63,-25,-49,-61,-58,14,14,17,-132,-117,-109,42,51,71,-34,-10,-192,-197,-672,-670,-642,-642,-1076,-339,-339,-338,-316,-321,-525,-254,-257,-162,-134,-143,-154,-73,-71,-55,-186,-159,-152,-113,-122,-101,-115,-93,-108,-8,-8,-8,-8,-8,-8,-1,-36,-57,-72,0,0,0,0,0,0,0,0,0,0,0,0,0,0,0,0,0,0,0,0,0,0,0,0,0,0,0,0]} 1. c4 {[%emt 0:00:04]} e5 {[%emt 0:00:09]} 2. Nc3 {[%emt 0:00:07]} f5 {[%emt 0:00:05]} 3. g3 {[%emt 0:00:47]} Nf6 {[%emt 0:00:11]} 4. Bg2 {[%emt 0:00:15]} Bb4 {[%emt 0:02:45]} 5. Qc2 {[%emt 0:09:07]} Bxc3 {[%emt 0:03:47]} 6. bxc3 {[%emt 0:01:00] A21: English Opening: 1...e5 2 Nc3.} d6 {[%emt 0:00:55] [#]} 7. Ba3 $146 {[%emt 0:08:07]} (7. d4 $11) ({Predecessor:} 7. Rb1 Nc6 8. Qa4 Qd7 9. e3 O-O 10. Ne2 e4 11. O-O Ne5 12. Qxd7 Nfxd7 13. Nd4 Nb6 {1-0 (46) Santos Neto,A (1672)-Aguiar,L (1560) Curitiba 2016}) 7... c5 $15 {[%emt 0:04:43]} 8. Nh3 {[%emt 0:01:42] Black is slightly better.} O-O {[%emt 0:02:55]} 9. O-O {[%emt 0:01:53]} Nc6 {[%emt 0:04:26]} 10. Rab1 {[%emt 0:05:08]} Qe7 {[%emt 0:04:57]} 11. f3 {[%emt 0:16:03]} Qf7 {[%emt 0:06:41]} 12. d3 {[%emt 0:01:54]} Qh5 {[%emt 0:04:16][%cal Of5f4]} (12... f4 $5) 13. Qd2 {[%emt 0:04:55]} f4 {[%emt 0:09:23]} 14. g4 {[%emt 0:00:12]} Nxg4 {[%emt 0:12:06]} 15. fxg4 $11 {[%emt 0:00:17]} Bxg4 {[%emt 0:00:05]} 16. Nxf4 {[%emt 0:04:41]} exf4 $17 {[%emt 0:02:21]} 17. Rxf4 {[%emt 0:04:56]} g5 $2 {[%emt 0:05:37]} (17... Bh3 $17 18. Bd5+ Kh8 19. Rxf8+ Rxf8) 18. Rxf8+ $14 {[%emt 0:19:21]} Rxf8 {[%emt 0:00:13]} 19. Rxb7 {[%emt 0:00:29]} (19. Qe3 $16 Bc8 20. Rf1) 19... Bxe2 {[%emt 0:15:09] Hoping for ...Ne5.} 20. Rb2 $2 {[%emt 0:08:50]} (20. Bxc6 $2 {leads to mate.} Rf1+ 21. Kg2 Qg4#) (20. Bd5+ $2 Kh8 21. Qe1 (21. Bxc6 $2 Rf1+ 22. Kg2 Qg4#) 21... Ne5 $19) (20. d4 $1 $11) 20... Bf3 $19 {[%emt 0:03:47]} 21. Qe3 {[%emt 0:03:50]} (21. Bxf3 Qxf3 22. Qe2) 21... Bxg2 {[%emt 0:09:37]} 22. Kxg2 {[%emt 0:00:07]} Ne5 {[%emt 0:00:59] White must now prevent ...Rf3.} (22... Qg4+ 23. Qg3 Qd1 24. Rf2 Rxf2+ 25. Kxf2 Qc2+ 26. Ke3 Qxc3 27. Qxg5+ Kf8 28. Qd5 (28. Qf4+ $2 Ke7 $19) 28... Qe1+ 29. Kf4 Qh4+ 30. Ke3 Qh6+ 31. Kf3 Qxh2 32. Qf5+ Ke7 33. Qg5+ Ke8 34. Qg8+ Kd7 35. Qg7+ Ne7 36. Qg4+ Ke8 37. Qg2 Qxg2+ 38. Kxg2 $19) 23. Qe4 {[%emt 0:05:34]} Qf7 $2 {[%emt 0:03:34]} (23... Ng6 {( -> ...Nh4+)} 24. Bxc5 Nf4+ 25. Kh1 Re8) 24. Qd5 {[%emt 0:01:43]} Qxd5+ {[%emt 0:00:15]} 25. cxd5 {[%emt 0:00:03]} Nxd3 {[%emt 0:00:16][%mdl 4096] Endgame KRB-KRN} 26. Rd2 {[%emt 0:00:19]} (26. Rb7 {was necessary.}) 26... Ne5 {[%emt 0:00:38]} (26... Ne1+ $142 27. Kg3 h5) 27. Re2 {[%emt 0:00:26][%cal Oa3c5]} Nc4 {[%emt 0:01:25]} 28. Bc1 {[%emt 0:00:26]} Rf5 {[%emt 0:00:34]} 29. Re4 {[%emt 0:01:04]} Nb6 {[%emt 0:00:31]} (29... Ne5 $142 30. Be3 Kf7) 30. c4 $17 {[%emt 0:00:11]} Kf7 {[%emt 0:00:36]} 31. Rg4 {[%emt 0:01:36]} ({White has to play} 31. h4 $1 $15) 31... h6 {[%emt 0:00:24]} 32. Re4 {[%emt 0:00:12]} Re5 {[%emt 0:00:51]} 33. Rxe5 {[%emt 0:00:41]} dxe5 {[%emt 0:00:01] KB-KN} 34. Be3 {[%emt 0:00:31]} Nxc4 {[%emt 0:01:41]} 35. Bxc5 {[%emt 0:00:01] [#]} Nb6 {[%emt 0:00:30]} (35... a6 $1 $17 {Threatens to win with ...Kf6.} 36. Kf3 Kf6) 36. Kf3 $11 {[%emt 0:01:07]} Nxd5 {[%emt 0:00:21]} 37. Bxa7 {[%emt 0:00:07]} Nc3 {[%emt 0:00:08]} 38. a3 {[%emt 0:00:25]} Ke6 {[%emt 0:00:08]} 39. Bc5 {[%emt 0:00:36]} h5 {[%emt 0:01:04]} 40. Bb4 {[%emt 0:00:28] [#]} Nd5 {[%emt 0:01:02]} (40... Na4 $1 $17) 41. Bd2 {[%emt 0:12:03] The position is equal.} Kf5 {[%emt 0:03:57]} 42. a4 {[%emt 0:00:37]} g4+ {[%emt 0:09:00]} 43. Kg3 {[%emt 0:03:07]} Ke4 {[%emt 0:07:59]} 44. Kh4 {[%emt 0:02:14]} Kd3 {[%emt 0:01:42]} 45. Bg5 {[%emt 0:00:39]} Ke4 {[%emt 0:05:32]} 46. Kxh5 {[%emt 0:04:37]} Kf3 {[%emt 0:01:01]} 47. a5 {[%emt 0:00:29]} Nb4 {[%emt 0:00:35]} 48. Bd2 {[%emt 0:02:18]} Na6 {[%emt 0:00:12]} 49. Kh4 {[%emt 0:01:05]} e4 {[%emt 0:00:38]} 50. Be1 {[%emt 0:01:05]} e3 {[%emt 0:01:12]} 51. h3 {[%emt 0:01:01]} gxh3 {[%emt 0:00:50]} 52. Kxh3 {[%emt 0:00:05]} Ke2 {[%emt 0:00:33]} 53. Bh4 {[%emt 0:00:46]} Kf3 {[%emt 0:00:19]} 54. Kh2 {[%emt 0:00:53] Weighted Error Value: White=0.47/Black=0.39} 1/2-1/2